[Event "Titled Tuesday Blitz March 07 Late 2023"]
[White "Carlsen, Magnus"]
[Black "Tatarinov, Dmitry"]
[WhiteFideId "1503014"]
[BlackFideId "24160067"]
[WhiteElo "2852"]
[BlackElo "2326"]
[Result "1-0"]
[Round "02"]
[TimeControl "180+2"]
[Date "2023.03.07"]
[WhiteClock "0:01:15"]
[BlackClock "0:00:52"]

1. d4 {[%clk 0:02:59]}  Nf6 {[%clk 0:02:57]} 2. Bf4 {[%clk 0:02:58]}  d6 {[%clk 0:02:57]} 3. Nc3 {[%clk 0:02:57]}  Nc6 {[%clk 0:02:55]} 4. Nf3 {[%clk 0:02:55]}  Bf5 {[%clk 0:02:53]} 5. d5 {[%clk 0:02:53]}  e5 {[%clk 0:02:52]} 6. dxc6 {[%clk 0:02:46]}  exf4 {[%clk 0:02:52]} 7. Nd4 {[%clk 0:02:46]}  Bc8 {[%clk 0:02:42]} 8. e3 {[%clk 0:02:35]}  fxe3 {[%clk 0:02:13]} 9. Qe2 {[%clk 0:02:34]}  Be7 {[%clk 0:02:11]} 10. cxb7 {[%clk 0:02:24]}  Bxb7 {[%clk 0:02:11]} 11. Qb5+ {[%clk 0:02:24]}  Qd7 {[%clk 0:02:00]} 12. Qxb7 {[%clk 0:02:23]}  exf2+ {[%clk 0:02:01]} 13. Kxf2 {[%clk 0:02:22]}  O-O {[%clk 0:02:01]} 14. Be2 {[%clk 0:02:15]}  Rab8 {[%clk 0:01:57]} 15. Qc6 {[%clk 0:02:15]}  Rxb2 {[%clk 0:01:51]} 16. Qxd7 {[%clk 0:01:59]}  Nxd7 {[%clk 0:01:52]} 17. Nd5 {[%clk 0:01:53]}  Bf6 {[%clk 0:01:43]} 18. Nxf6+ {[%clk 0:01:53]}  Nxf6 {[%clk 0:01:44]} 19. Rhb1 {[%clk 0:01:52]}  Rfb8 {[%clk 0:01:43]} 20. Rxb2 {[%clk 0:01:41]}  Rxb2 {[%clk 0:01:44]} 21. Bd3 {[%clk 0:01:40]}  c5 {[%clk 0:01:30]} 22. Nb3 {[%clk 0:01:33]}  c4 {[%clk 0:01:26]} 23. Bxc4 {[%clk 0:01:33]}  Rxc2+ {[%clk 0:01:26]} 24. Be2 {[%clk 0:01:34]}  g6 {[%clk 0:01:20]} 25. h3 {[%clk 0:01:26]}  Kg7 {[%clk 0:01:19]} 26. Ke1 {[%clk 0:01:24]}  h5 {[%clk 0:01:19]} 27. Bf3 {[%clk 0:01:24]}  g5 {[%clk 0:01:15]} 28. Nd4 {[%clk 0:01:21]}  Rc5 {[%clk 0:01:06]} 29. Rd1 {[%clk 0:01:21]}  g4 {[%clk 0:01:05]} 30. hxg4 {[%clk 0:01:20]}  hxg4 {[%clk 0:01:06]} 31. Be2 {[%clk 0:01:20]}  Kg6 {[%clk 0:01:06]} 32. Nb3 {[%clk 0:01:19]}  Rd5 {[%clk 0:01:01]} 33. Rxd5 {[%clk 0:01:18]}  Nxd5 {[%clk 0:01:02]} 34. Bxg4 {[%clk 0:01:18]}  Kg5 {[%clk 0:00:58]} 35. Bf3 {[%clk 0:01:18]}  Nb4 {[%clk 0:00:58]} 36. a4 {[%clk 0:01:17]}  Kf4 {[%clk 0:00:58]} 37. Kd2 {[%clk 0:01:17]}  Ke5 {[%clk 0:00:56]} 38. Kc3 {[%clk 0:01:17]}  Na2+ {[%clk 0:00:53]} 39. Kc4 {[%clk 0:01:16]}  f5 {[%clk 0:00:52]} 40. Na5 {[%clk 0:01:15]} 1-0


[Site "https://www.chess.com"]

[Event "Titled Tuesday Blitz March 07 Late 2023"]
[White "Rastbod, Ali"]
[Black "Nakamura, Hikaru"]
[WhiteFideId "12567477"]
[BlackFideId "2016192"]
[WhiteElo "2211"]
[BlackElo "2879"]
[Result "0-1"]
[Round "02"]
[TimeControl "180+2"]
[Date "2023.03.07"]
[WhiteClock "0:00:03"]
[BlackClock "0:01:15"]

1. c4 {[%clk 0:03:00]}  e5 {[%clk 0:02:58]} 2. Nc3 {[%clk 0:03:00]}  Nc6 {[%clk 0:02:55]} 3. Nf3 {[%clk 0:02:59]}  f5 {[%clk 0:02:54]} 4. d4 {[%clk 0:02:59]}  e4 {[%clk 0:02:53]} 5. Ng5 {[%clk 0:03:00]}  h6 {[%clk 0:02:52]} 6. Nh3 {[%clk 0:02:59]}  g5 {[%clk 0:02:52]} 7. Ng1 {[%clk 0:03:00]}  Bb4 {[%clk 0:02:47]} 8. Bd2 {[%clk 0:02:58]}  Nf6 {[%clk 0:02:39]} 9. a3 {[%clk 0:02:58]}  Bxc3 {[%clk 0:02:39]} 10. Bxc3 {[%clk 0:02:58]}  d5 {[%clk 0:02:36]} 11. e3 {[%clk 0:02:59]}  Be6 {[%clk 0:02:36]} 12. b3 {[%clk 0:02:59]}  Qe7 {[%clk 0:02:35]} 13. h4 {[%clk 0:02:59]}  O-O-O {[%clk 0:02:35]} 14. hxg5 {[%clk 0:02:15]}  hxg5 {[%clk 0:02:34]} 15. Rxh8 {[%clk 0:02:15]}  Rxh8 {[%clk 0:02:34]} 16. Nh3 {[%clk 0:02:16]}  Rg8 {[%clk 0:02:27]} 17. Qd2 {[%clk 0:01:40]}  Nh5 {[%clk 0:02:16]} 18. Be2 {[%clk 0:01:35]}  g4 {[%clk 0:02:15]} 19. Nf4 {[%clk 0:01:35]}  Nxf4 {[%clk 0:02:16]} 20. exf4 {[%clk 0:01:36]}  g3 {[%clk 0:02:16]} 21. Qe3 {[%clk 0:01:23]}  Qh4 {[%clk 0:02:12]} 22. c5 {[%clk 0:00:24]}  Bd7 {[%clk 0:01:54]} 23. f3 {[%clk 0:00:18]}  Ne7 {[%clk 0:01:42]} 24. O-O-O {[%clk 0:00:15]}  Qh2 {[%clk 0:01:41]} 25. Qg1 {[%clk 0:00:14]}  Ng6 {[%clk 0:01:40]} 26. Bd2 {[%clk 0:00:14]}  Nh4 {[%clk 0:01:36]} 27. Kc2 {[%clk 0:00:04]}  exf3 {[%clk 0:01:27]} 28. Bxf3 {[%clk 0:00:03]}  Nxf3 {[%clk 0:01:27]} 29. gxf3 {[%clk 0:00:04]}  Qe2 {[%clk 0:01:23]} 30. Re1 {[%clk 0:00:04]}  Qxf3 {[%clk 0:01:23]} 31. Re3 {[%clk 0:00:04]}  Qg4 {[%clk 0:01:22]} 32. Be1 {[%clk 0:00:04]}  g2 {[%clk 0:01:21]} 33. Bd2 {[%clk 0:00:05]}  b6 {[%clk 0:01:20]} 34. b4 {[%clk 0:00:04]}  Kb7 {[%clk 0:01:17]} 35. Re5 {[%clk 0:00:04]}  Qf3 {[%clk 0:01:14]} 36. Re3 {[%clk 0:00:04]}  Qf1 {[%clk 0:01:14]} 37. Re1 {[%clk 0:00:03]}  Qc4+ {[%clk 0:01:14]} 38. Kb2 {[%clk 0:00:03]}  Ba4 {[%clk 0:01:15]} 39. Bc3 {[%clk 0:00:03]}  Qb3+ {[%clk 0:01:15]} 0-1


[Site "https://www.chess.com"]

[Event "Titled Tuesday Blitz March 07 Late 2023"]
[White "Martinez Ramirez, Lennis"]
[Black "Firouzja, Alireza"]
[WhiteFideId "3509079"]
[BlackFideId "12573981"]
[WhiteElo "2439"]
[BlackElo "2904"]
[Result "0-1"]
[Round "02"]
[TimeControl "180+2"]
[Date "2023.03.07"]
[WhiteClock "0:01:24"]
[BlackClock "0:02:50"]

1. c4 {[%clk 0:03:00]}  Nf6 {[%clk 0:03:00]} 2. g3 {[%clk 0:03:00]}  g6 {[%clk 0:03:00]} 3. Bg2 {[%clk 0:03:00]}  Bg7 {[%clk 0:03:01]} 4. Nc3 {[%clk 0:03:00]}  O-O {[%clk 0:03:01]} 5. d4 {[%clk 0:03:00]}  d6 {[%clk 0:03:02]} 6. e4 {[%clk 0:03:00]}  c5 {[%clk 0:02:59]} 7. Nge2 {[%clk 0:02:58]}  Nc6 {[%clk 0:03:00]} 8. d5 {[%clk 0:02:49]}  Na5 {[%clk 0:02:59]} 9. b3 {[%clk 0:02:44]}  e6 {[%clk 0:02:59]} 10. Bg5 {[%clk 0:02:36]}  h6 {[%clk 0:02:59]} 11. Bd2 {[%clk 0:02:34]}  exd5 {[%clk 0:02:59]} 12. cxd5 {[%clk 0:02:26]}  a6 {[%clk 0:02:58]} 13. Qc1 {[%clk 0:02:18]}  Kh7 {[%clk 0:02:57]} 14. O-O {[%clk 0:02:16]}  b5 {[%clk 0:02:56]} 15. Rb1 {[%clk 0:02:16]}  Re8 {[%clk 0:02:56]} 16. f3 {[%clk 0:02:15]}  Bd7 {[%clk 0:02:56]} 17. Re1 {[%clk 0:01:53]}  b4 {[%clk 0:02:55]} 18. Nd1 {[%clk 0:01:53]}  Bb5 {[%clk 0:02:55]} 19. Ne3 {[%clk 0:01:51]}  Rc8 {[%clk 0:02:56]} 20. Nc4 {[%clk 0:01:50]}  Bxc4 {[%clk 0:02:50]} 21. bxc4 {[%clk 0:01:50]}  Nd7 {[%clk 0:02:51]} 22. Bf1 {[%clk 0:01:39]}  Ne5 {[%clk 0:02:50]} 23. Rb3 {[%clk 0:01:31]}  Nxb3 {[%clk 0:02:50]} 24. axb3 {[%clk 0:01:32]}  Nxf3+ {[%clk 0:02:50]} 25. Kf2 {[%clk 0:01:28]}  Nxe1 {[%clk 0:02:50]} 26. Bxe1 {[%clk 0:01:28]}  Rxe4 {[%clk 0:02:51]} 27. Bg2 {[%clk 0:01:25]}  Qf6+ {[%clk 0:02:51]} 28. Bf3 {[%clk 0:01:24]}  Rce8 {[%clk 0:02:50]} 0-1


[Site "https://www.chess.com"]

[Event "Titled Tuesday Blitz March 07 Late 2023"]
[White "Yu, Yangyi"]
[Black "Cuenca Jimenez, Jose Fernando"]
[WhiteFideId "8603820"]
[BlackFideId "2255570"]
[WhiteElo "2783"]
[BlackElo "2429"]
[Result "1-0"]
[Round "02"]
[TimeControl "180+2"]
[Date "2023.03.07"]
[WhiteClock "0:00:13"]
[BlackClock "0:00:02"]

1. Nf3 {[%clk 0:03:00]}  Nf6 {[%clk 0:02:59]} 2. g3 {[%clk 0:03:00]}  d5 {[%clk 0:02:58]} 3. Bg2 {[%clk 0:03:00]}  e6 {[%clk 0:02:58]} 4. O-O {[%clk 0:02:58]}  Be7 {[%clk 0:02:58]} 5. c4 {[%clk 0:02:58]}  O-O {[%clk 0:02:55]} 6. b3 {[%clk 0:02:56]}  d4 {[%clk 0:02:55]} 7. e3 {[%clk 0:02:56]}  c5 {[%clk 0:02:56]} 8. Ne5 {[%clk 0:02:56]}  Bd6 {[%clk 0:02:38]} 9. exd4 {[%clk 0:02:49]}  cxd4 {[%clk 0:02:37]} 10. f4 {[%clk 0:02:40]}  Qc7 {[%clk 0:02:22]} 11. Ba3 {[%clk 0:02:30]}  Rd8 {[%clk 0:02:05]} 12. Bxd6 {[%clk 0:02:13]}  Rxd6 {[%clk 0:01:52]} 13. d3 {[%clk 0:02:13]}  Nc6 {[%clk 0:01:44]} 14. Nd2 {[%clk 0:02:09]}  Rd8 {[%clk 0:01:36]} 15. Ndf3 {[%clk 0:02:08]}  Bd7 {[%clk 0:01:30]} 16. Qd2 {[%clk 0:02:05]}  Be8 {[%clk 0:01:28]} 17. b4 {[%clk 0:02:04]}  Nxe5 {[%clk 0:01:25]} 18. Nxe5 {[%clk 0:02:04]}  Nd7 {[%clk 0:01:22]} 19. Nf3 {[%clk 0:02:00]}  Nf6 {[%clk 0:01:22]} 20. Ne5 {[%clk 0:01:59]}  Nd7 {[%clk 0:01:22]} 21. Qe2 {[%clk 0:01:49]}  a5 {[%clk 0:01:18]} 22. b5 {[%clk 0:01:48]}  Nc5 {[%clk 0:01:11]} 23. Rab1 {[%clk 0:01:44]}  f6 {[%clk 0:01:06]} 24. b6 {[%clk 0:01:39]}  Qe7 {[%clk 0:01:03]} 25. Ng4 {[%clk 0:01:35]}  Rd6 {[%clk 0:00:52]} 26. Nf2 {[%clk 0:01:31]}  Ra6 {[%clk 0:00:47]} 27. Qd2 {[%clk 0:01:07]}  Rdxb6 {[%clk 0:00:38]} 28. Rxb6 {[%clk 0:01:04]}  Rxb6 {[%clk 0:00:39]} 29. Qxa5 {[%clk 0:01:05]}  Ra6 {[%clk 0:00:34]} 30. Qd2 {[%clk 0:00:57]}  Bc6 {[%clk 0:00:33]} 31. Rb1 {[%clk 0:00:49]}  Bxg2 {[%clk 0:00:32]} 32. Kxg2 {[%clk 0:00:50]}  Qd7 {[%clk 0:00:31]} 33. Rb5 {[%clk 0:00:48]}  Qc6+ {[%clk 0:00:30]} 34. Kg1 {[%clk 0:00:48]}  b6 {[%clk 0:00:29]} 35. Qe2 {[%clk 0:00:47]}  Ra3 {[%clk 0:00:26]} 36. Qb2 {[%clk 0:00:47]}  Ra6 {[%clk 0:00:25]} 37. Qxd4 {[%clk 0:00:35]}  Rxa2 {[%clk 0:00:24]} 38. Ne4 {[%clk 0:00:25]}  Nxe4 {[%clk 0:00:20]} 39. dxe4 {[%clk 0:00:26]}  Ra6 {[%clk 0:00:12]} 40. f5 {[%clk 0:00:22]}  exf5 {[%clk 0:00:10]} 41. exf5 {[%clk 0:00:21]}  h6 {[%clk 0:00:10]} 42. Rd5 {[%clk 0:00:18]}  Ra2 {[%clk 0:00:09]} 43. Qg4 {[%clk 0:00:15]}  Qc7 {[%clk 0:00:07]} 44. Qe4 {[%clk 0:00:14]}  Kh7 {[%clk 0:00:07]} 45. Qe8 {[%clk 0:00:13]}  Qa7 {[%clk 0:00:04]} 46. Qg6+ {[%clk 0:00:12]}  Kg8 {[%clk 0:00:02]} 47. Rd8# {[%clk 0:00:13]} 1-0


[Site "https://www.chess.com"]

[Event "Titled Tuesday Blitz March 07 Late 2023"]
[White "Bujisho, Benjamin"]
[Black "Vachier-Lagrave, Maxime"]
[WhiteFideId "608610"]
[BlackFideId "623539"]
[WhiteElo "2371"]
[BlackElo "2740"]
[Result "0-1"]
[Round "02"]
[TimeControl "180+2"]
[Date "2023.03.07"]
[WhiteClock "0:00:05"]
[BlackClock "0:00:09"]

1. d4 {[%clk 0:03:00]}  Nf6 {[%clk 0:02:59]} 2. Nf3 {[%clk 0:02:56]}  g6 {[%clk 0:02:54]} 3. Bf4 {[%clk 0:02:55]}  Bg7 {[%clk 0:02:54]} 4. e3 {[%clk 0:02:55]}  O-O {[%clk 0:02:54]} 5. Nbd2 {[%clk 0:02:52]}  b6 {[%clk 0:02:53]} 6. h3 {[%clk 0:02:52]}  Bb7 {[%clk 0:02:53]} 7. Be2 {[%clk 0:02:52]}  c5 {[%clk 0:02:49]} 8. c3 {[%clk 0:02:47]}  d6 {[%clk 0:02:44]} 9. O-O {[%clk 0:02:47]}  Nbd7 {[%clk 0:02:41]} 10. Bh2 {[%clk 0:02:47]}  Qc7 {[%clk 0:02:32]} 11. a4 {[%clk 0:02:47]}  Ne4 {[%clk 0:02:29]} 12. Nxe4 {[%clk 0:02:46]}  Bxe4 {[%clk 0:02:30]} 13. Qb3 {[%clk 0:02:41]}  Nf6 {[%clk 0:02:22]} 14. Rfd1 {[%clk 0:02:40]}  Rab8 {[%clk 0:02:13]} 15. Bg3 {[%clk 0:02:19]}  Qb7 {[%clk 0:02:01]} 16. Bh4 {[%clk 0:02:08]}  h6 {[%clk 0:01:56]} 17. Bxf6 {[%clk 0:02:03]}  Bxf6 {[%clk 0:01:54]} 18. Ne1 {[%clk 0:02:02]}  Bd5 {[%clk 0:01:42]} 19. Qc2 {[%clk 0:01:48]}  Be6 {[%clk 0:01:35]} 20. Bg4 {[%clk 0:01:37]}  Bxg4 {[%clk 0:01:34]} 21. hxg4 {[%clk 0:01:38]}  Kg7 {[%clk 0:01:34]} 22. Qe2 {[%clk 0:01:36]}  Rh8 {[%clk 0:01:24]} 23. Qf3 {[%clk 0:01:23]}  Qd7 {[%clk 0:01:08]} 24. e4 {[%clk 0:01:15]}  cxd4 {[%clk 0:01:05]} 25. cxd4 {[%clk 0:01:15]}  h5 {[%clk 0:00:58]} 26. e5 {[%clk 0:01:12]}  Bg5 {[%clk 0:00:58]} 27. gxh5 {[%clk 0:01:07]}  Rxh5 {[%clk 0:00:59]} 28. g3 {[%clk 0:00:54]}  Rbh8 {[%clk 0:00:55]} 29. Qg2 {[%clk 0:00:53]}  dxe5 {[%clk 0:00:37]} 30. dxe5 {[%clk 0:00:40]}  Qg4 {[%clk 0:00:31]} 31. Rd3 {[%clk 0:00:30]}  e6 {[%clk 0:00:17]} 32. Nf3 {[%clk 0:00:23]}  Qe4 {[%clk 0:00:17]} 33. Rad1 {[%clk 0:00:22]}  Be7 {[%clk 0:00:16]} 34. Re3 {[%clk 0:00:21]}  Qxa4 {[%clk 0:00:15]} 35. Rde1 {[%clk 0:00:18]}  Bc5 {[%clk 0:00:15]} 36. Re4 {[%clk 0:00:18]}  Qc2 {[%clk 0:00:15]} 37. Rh4 {[%clk 0:00:17]}  Rxh4 {[%clk 0:00:15]} 38. Nxh4 {[%clk 0:00:17]}  Qxb2 {[%clk 0:00:10]} 39. Qf3 {[%clk 0:00:17]}  Be7 {[%clk 0:00:09]} 40. Ng2 {[%clk 0:00:18]}  Qd4 {[%clk 0:00:09]} 41. Rd1 {[%clk 0:00:16]}  Qxe5 {[%clk 0:00:09]} 42. Ne3 {[%clk 0:00:16]}  Bc5 {[%clk 0:00:09]} 43. Ng4 {[%clk 0:00:16]}  Qf5 {[%clk 0:00:09]} 44. Qc3+ {[%clk 0:00:14]}  e5 {[%clk 0:00:09]} 45. Nxe5 {[%clk 0:00:05]}  Qxf2# {[%clk 0:00:09]} 0-1


[Site "https://www.chess.com"]

[Event "Titled Tuesday Blitz March 07 Late 2023"]
[White "Duda, Jan-Krzysztof"]
[Black "Skvortsov, Andrei"]
[WhiteFideId "1170546"]
[BlackFideId "24108600"]
[WhiteElo "2790"]
[BlackElo "2259"]
[Result "1-0"]
[Round "02"]
[TimeControl "180+2"]
[Date "2023.03.07"]
[WhiteClock "0:01:00"]
[BlackClock "0:00:14"]

1. e4 {[%clk 0:03:00]}  e5 {[%clk 0:02:55]} 2. Nf3 {[%clk 0:03:00]}  Nf6 {[%clk 0:02:55]} 3. Nc3 {[%clk 0:02:57]}  Nc6 {[%clk 0:02:54]} 4. Bb5 {[%clk 0:02:58]}  Bd6 {[%clk 0:02:52]} 5. d3 {[%clk 0:02:55]}  a6 {[%clk 0:02:49]} 6. Bxc6 {[%clk 0:02:52]}  dxc6 {[%clk 0:02:47]} 7. h3 {[%clk 0:02:52]}  Qe7 {[%clk 0:02:46]} 8. Ne2 {[%clk 0:02:50]}  c5 {[%clk 0:02:46]} 9. Ng3 {[%clk 0:02:51]}  b5 {[%clk 0:02:43]} 10. a4 {[%clk 0:02:49]}  c6 {[%clk 0:02:39]} 11. O-O {[%clk 0:02:45]}  h6 {[%clk 0:02:32]} 12. Nh4 {[%clk 0:02:41]}  g6 {[%clk 0:02:28]} 13. Be3 {[%clk 0:02:25]}  Be6 {[%clk 0:02:25]} 14. Qd2 {[%clk 0:02:19]}  Nd7 {[%clk 0:02:11]} 15. Nf3 {[%clk 0:02:17]}  g5 {[%clk 0:02:06]} 16. Nh2 {[%clk 0:02:05]}  Nf6 {[%clk 0:01:36]} 17. f3 {[%clk 0:01:54]}  Qb7 {[%clk 0:01:27]} 18. Ng4 {[%clk 0:01:53]}  Ng8 {[%clk 0:01:26]} 19. Nh5 {[%clk 0:01:49]}  O-O-O {[%clk 0:01:21]} 20. axb5 {[%clk 0:01:47]}  axb5 {[%clk 0:01:16]} 21. Qf2 {[%clk 0:01:41]}  f5 {[%clk 0:00:39]} 22. exf5 {[%clk 0:01:41]}  Bxf5 {[%clk 0:00:39]} 23. Bxc5 {[%clk 0:01:41]}  Bb8 {[%clk 0:00:39]} 24. Rfe1 {[%clk 0:01:32]}  Rd5 {[%clk 0:00:36]} 25. Ba7 {[%clk 0:01:24]}  Bc7 {[%clk 0:00:30]} 26. Ne3 {[%clk 0:01:24]}  Bg6 {[%clk 0:00:24]} 27. Nxd5 {[%clk 0:01:22]}  cxd5 {[%clk 0:00:25]} 28. Ng3 {[%clk 0:01:20]}  Nf6 {[%clk 0:00:26]} 29. Bc5 {[%clk 0:01:17]}  Bb8 {[%clk 0:00:25]} 30. Ra5 {[%clk 0:01:13]}  Re8 {[%clk 0:00:23]} 31. Rea1 {[%clk 0:01:09]}  Nd7 {[%clk 0:00:22]} 32. Ra6 {[%clk 0:01:05]}  Rg8 {[%clk 0:00:18]} 33. Bd6 {[%clk 0:01:03]}  h5 {[%clk 0:00:13]} 34. Bxb8 {[%clk 0:01:00]}  Nxb8 {[%clk 0:00:14]} 35. Qc5+ {[%clk 0:01:00]} 1-0


[Site "https://www.chess.com"]

[Event "Titled Tuesday Blitz March 07 Late 2023"]
[White "Ashraf, Artin"]
[Black "Fedoseev, Vladimir"]
[WhiteFideId "22514805"]
[BlackFideId "24130737"]
[WhiteElo "2188"]
[BlackElo "2752"]
[Result "0-1"]
[Round "02"]
[TimeControl "180+2"]
[Date "2023.03.07"]
[WhiteClock "0:00:20"]
[BlackClock "0:00:28"]

1. c4 {[%clk 0:02:59]}  e5 {[%clk 0:02:59]} 2. Nc3 {[%clk 0:02:59]}  Nc6 {[%clk 0:02:57]} 3. g3 {[%clk 0:02:58]}  g6 {[%clk 0:02:57]} 4. Bg2 {[%clk 0:02:58]}  Bg7 {[%clk 0:02:58]} 5. d3 {[%clk 0:02:58]}  d6 {[%clk 0:02:57]} 6. Rb1 {[%clk 0:02:57]}  a5 {[%clk 0:02:54]} 7. h4 {[%clk 0:02:54]}  Nf6 {[%clk 0:02:52]} 8. Bg5 {[%clk 0:02:50]}  h6 {[%clk 0:02:47]} 9. Bxf6 {[%clk 0:02:50]}  Bxf6 {[%clk 0:02:48]} 10. h5 {[%clk 0:02:47]}  g5 {[%clk 0:02:46]} 11. e4 {[%clk 0:02:28]}  g4 {[%clk 0:02:32]} 12. Nge2 {[%clk 0:02:26]}  Bg5 {[%clk 0:02:31]} 13. d4 {[%clk 0:02:25]}  exd4 {[%clk 0:02:26]} 14. Nxd4 {[%clk 0:02:26]}  Ne5 {[%clk 0:02:26]} 15. Qe2 {[%clk 0:02:22]}  c6 {[%clk 0:02:23]} 16. O-O {[%clk 0:02:18]}  O-O {[%clk 0:02:23]} 17. Rbd1 {[%clk 0:02:13]}  Qf6 {[%clk 0:02:18]} 18. Nf5 {[%clk 0:02:10]}  Rd8 {[%clk 0:02:07]} 19. Nd4 {[%clk 0:01:26]}  a4 {[%clk 0:02:06]} 20. f4 {[%clk 0:01:22]}  gxf3 {[%clk 0:02:05]} 21. Nxf3 {[%clk 0:01:22]}  Be6 {[%clk 0:01:59]} 22. Nd4 {[%clk 0:01:17]}  Bxc4 {[%clk 0:01:56]} 23. Qc2 {[%clk 0:01:08]}  Be3+ {[%clk 0:01:52]} 24. Kh1 {[%clk 0:01:08]}  Qg5 {[%clk 0:01:41]} 25. Nf5 {[%clk 0:00:48]}  Qxh5+ {[%clk 0:01:35]} 26. Nh4 {[%clk 0:00:47]}  Bxf1 {[%clk 0:01:14]} 27. Rxf1 {[%clk 0:00:48]}  Bg5 {[%clk 0:01:10]} 28. Qf2 {[%clk 0:00:46]}  Rf8 {[%clk 0:00:55]} 29. Ne2 {[%clk 0:00:43]}  Bxh4 {[%clk 0:00:47]} 30. gxh4 {[%clk 0:00:44]}  Ng6 {[%clk 0:00:47]} 31. Bh3 {[%clk 0:00:42]}  Qxh4 {[%clk 0:00:47]} 32. Qg2 {[%clk 0:00:42]}  Rae8 {[%clk 0:00:42]} 33. Ng3 {[%clk 0:00:41]}  Re5 {[%clk 0:00:39]} 34. Nf5 {[%clk 0:00:40]}  Qxe4 {[%clk 0:00:38]} 35. Nxh6+ {[%clk 0:00:35]}  Kh7 {[%clk 0:00:38]} 36. Qxe4 {[%clk 0:00:28]}  Rxe4 {[%clk 0:00:38]} 37. Nxf7 {[%clk 0:00:29]}  Kg7 {[%clk 0:00:34]} 38. Nxd6 {[%clk 0:00:28]}  Rxf1+ {[%clk 0:00:33]} 39. Bxf1 {[%clk 0:00:29]}  Re1 {[%clk 0:00:33]} 40. Kg1 {[%clk 0:00:29]}  b5 {[%clk 0:00:31]} 41. Nf5+ {[%clk 0:00:24]}  Kf6 {[%clk 0:00:31]} 42. Nd4 {[%clk 0:00:24]}  Ne5 {[%clk 0:00:32]} 43. b3 {[%clk 0:00:22]}  Rd1 {[%clk 0:00:28]} 44. Nc2 {[%clk 0:00:20]}  Rd2 {[%clk 0:00:27]} 45. Nb4 {[%clk 0:00:20]}  Nf3+ {[%clk 0:00:28]} 0-1


[Site "https://www.chess.com"]

[Event "Titled Tuesday Blitz March 07 Late 2023"]
[White "Matlakov, Maxim"]
[Black "Haydon, David L"]
[WhiteFideId "4168003"]
[BlackFideId "415405"]
[WhiteElo "2666"]
[BlackElo "2326"]
[Result "1-0"]
[Round "02"]
[TimeControl "180+2"]
[Date "2023.03.07"]
[WhiteClock "0:01:22"]
[BlackClock "0:00:51"]

1. e4 {[%clk 0:03:00]}  c6 {[%clk 0:02:52]} 2. d4 {[%clk 0:02:59]}  d5 {[%clk 0:02:52]} 3. e5 {[%clk 0:02:57]}  Bf5 {[%clk 0:02:51]} 4. h4 {[%clk 0:02:57]}  h6 {[%clk 0:02:47]} 5. c4 {[%clk 0:02:55]}  e6 {[%clk 0:02:47]} 6. Nc3 {[%clk 0:02:55]}  Ne7 {[%clk 0:02:44]} 7. Nge2 {[%clk 0:02:46]}  dxc4 {[%clk 0:02:40]} 8. Ng3 {[%clk 0:02:46]}  b5 {[%clk 0:02:37]} 9. a4 {[%clk 0:02:44]}  Qb6 {[%clk 0:02:16]} 10. Be3 {[%clk 0:02:36]}  Nd5 {[%clk 0:02:13]} 11. Nxf5 {[%clk 0:02:33]}  exf5 {[%clk 0:02:02]} 12. axb5 {[%clk 0:02:27]}  Nxe3 {[%clk 0:02:00]} 13. fxe3 {[%clk 0:02:26]}  cxb5 {[%clk 0:01:58]} 14. g4 {[%clk 0:02:23]}  Nc6 {[%clk 0:01:55]} 15. gxf5 {[%clk 0:02:19]}  Bb4 {[%clk 0:01:52]} 16. Qg4 {[%clk 0:02:13]}  Ne7 {[%clk 0:01:42]} 17. Bg2 {[%clk 0:02:08]}  Rd8 {[%clk 0:01:39]} 18. O-O {[%clk 0:02:08]}  h5 {[%clk 0:01:31]} 19. Qg3 {[%clk 0:01:56]}  Bxc3 {[%clk 0:01:17]} 20. bxc3 {[%clk 0:01:56]}  g6 {[%clk 0:01:14]} 21. fxg6 {[%clk 0:01:39]}  Qxg6 {[%clk 0:01:12]} 22. Qxg6 {[%clk 0:01:37]}  Nxg6 {[%clk 0:01:13]} 23. Bc6+ {[%clk 0:01:34]}  Kf8 {[%clk 0:01:08]} 24. Rxa7 {[%clk 0:01:33]}  Rh7 {[%clk 0:01:07]} 25. Bxb5 {[%clk 0:01:30]}  Nxh4 {[%clk 0:01:04]} 26. Bxc4 {[%clk 0:01:30]}  Rg7+ {[%clk 0:01:03]} 27. Kh1 {[%clk 0:01:30]}  Rc8 {[%clk 0:01:00]} 28. Bxf7 {[%clk 0:01:25]}  Rxc3 {[%clk 0:00:55]} 29. Bd5+ {[%clk 0:01:23]}  Ke8 {[%clk 0:00:51]} 30. Rxg7 {[%clk 0:01:22]} 1-0


[Site "https://www.chess.com"]

[Event "Titled Tuesday Blitz March 07 Late 2023"]
[White "Lewicki, Miroslaw"]
[Black "Bortnyk, Olexandr"]
[WhiteFideId "1113380"]
[BlackFideId "14120828"]
[WhiteElo "2212"]
[BlackElo "2734"]
[Result "0-1"]
[Round "02"]
[TimeControl "180+2"]
[Date "2023.03.07"]
[WhiteClock "0:00:04"]
[BlackClock "0:00:44"]

1. e4 {[%clk 0:03:00]}  Nf6 {[%clk 0:02:59]} 2. e5 {[%clk 0:03:00]}  Nd5 {[%clk 0:02:59]} 3. d4 {[%clk 0:03:01]}  d6 {[%clk 0:02:59]} 4. exd6 {[%clk 0:03:02]}  exd6 {[%clk 0:02:59]} 5. Nf3 {[%clk 0:03:02]}  Be7 {[%clk 0:03:00]} 6. Be2 {[%clk 0:03:03]}  O-O {[%clk 0:03:00]} 7. O-O {[%clk 0:03:04]}  Nc6 {[%clk 0:03:00]} 8. b3 {[%clk 0:03:04]}  Bg4 {[%clk 0:03:00]} 9. c4 {[%clk 0:03:03]}  Nb6 {[%clk 0:03:00]} 10. Bb2 {[%clk 0:03:01]}  Bf6 {[%clk 0:03:00]} 11. Nbd2 {[%clk 0:03:01]}  Re8 {[%clk 0:02:58]} 12. h3 {[%clk 0:03:00]}  Bh5 {[%clk 0:02:58]} 13. Re1 {[%clk 0:02:54]}  d5 {[%clk 0:02:59]} 14. c5 {[%clk 0:02:53]}  Nd7 {[%clk 0:02:59]} 15. Rc1 {[%clk 0:02:49]}  Nf8 {[%clk 0:02:48]} 16. Nf1 {[%clk 0:02:47]}  Bxf3 {[%clk 0:02:28]} 17. Bxf3 {[%clk 0:02:23]}  Rxe1 {[%clk 0:02:28]} 18. Qxe1 {[%clk 0:02:24]}  Bxd4 {[%clk 0:02:26]} 19. Qd2 {[%clk 0:02:00]}  Ne6 {[%clk 0:02:17]} 20. Bg4 {[%clk 0:01:56]}  Bxb2 {[%clk 0:01:43]} 21. Qxb2 {[%clk 0:01:55]}  Qg5 {[%clk 0:01:44]} 22. b4 {[%clk 0:01:37]}  Ne5 {[%clk 0:01:28]} 23. Rd1 {[%clk 0:00:58]}  Nxg4 {[%clk 0:01:25]} 24. hxg4 {[%clk 0:00:58]}  d4 {[%clk 0:01:17]} 25. Qe2 {[%clk 0:00:52]}  Rd8 {[%clk 0:01:13]} 26. Ng3 {[%clk 0:00:51]}  Qd5 {[%clk 0:01:07]} 27. Nf5 {[%clk 0:00:30]}  Kf8 {[%clk 0:01:07]} 28. Qd2 {[%clk 0:00:26]}  d3 {[%clk 0:01:01]} 29. a3 {[%clk 0:00:21]}  a5 {[%clk 0:00:59]} 30. bxa5 {[%clk 0:00:19]}  Qxc5 {[%clk 0:00:59]} 31. Rb1 {[%clk 0:00:12]}  Qc2 {[%clk 0:00:53]} 32. Qb4+ {[%clk 0:00:13]}  c5 {[%clk 0:00:52]} 33. Qxb7 {[%clk 0:00:13]}  d2 {[%clk 0:00:50]} 34. Ne3 {[%clk 0:00:14]}  d1=Q+ {[%clk 0:00:46]} 35. Rxd1 {[%clk 0:00:14]}  Rxd1+ {[%clk 0:00:46]} 36. Nxd1 {[%clk 0:00:15]}  Qxd1+ {[%clk 0:00:46]} 37. Kh2 {[%clk 0:00:16]}  Qd6+ {[%clk 0:00:44]} 38. g3 {[%clk 0:00:13]}  Nc7 {[%clk 0:00:44]} 39. Qb6 {[%clk 0:00:04]}  Qxb6 {[%clk 0:00:43]} 40. axb6 {[%clk 0:00:04]}  Na6 {[%clk 0:00:44]} 0-1


[Site "https://www.chess.com"]